Cogmind - Beta 14 @@@ ROGUE MODE // 2025.03.23 @ 19:21:17 Player: NeoBioHazard Result: Destroyed by H-61 Shepherd with Heavy Assault Cannon Performance ------------- Evolutions (4) 2000 Regions Visited (6) 1200 Robots Destroyed (114) 570 Value Destroyed (3885) 3885 Prototype IDs (1) 20 Alien Tech Used (0) 0 Bonus (82) 82 TOTAL SCORE: 7757 Bonus ------- Follower Combat Kills 82 Cogmind --------- Core Integrity 0/850 Matter 89/300 Energy 98/100 System Corruption 6% Temperature Cool (1) Movement Walking (120) Location -6/Factory Parts ------- > --- POWER (2) -------- (None) > --- PROPULSION (4) --- Improved Carbon-fiber Leg > --- UTILITY (5) ------ (None) > --- WEAPON (4) ------- (None) > --- INVENTORY (5) ---- Matter Compressor (151) Improved Sensor Array Advanced Signal Interpreter Gauss Rifle Heavy Flail Peak State ------------ > --- POWER ------------ Deuterium Engine Improved Deuterium Engine > --- PROPULSION ------- Light Treads Light Treads Armored Treads Armored Treads > --- UTILITY ---------- Small Storage Unit Kinecellerator Weapon Cycler Improved Medium Armor Plating System Restoration Module > --- WEAPON ----------- Coil Gun Coil Gun Coil Gun Coil Gun > --- INVENTORY -------- Improved Sensor Array Advanced Signal Interpreter Gauss Rifle Gauss Rifle Gauss Rifle Gauss Rifle Improved Grenade Launcher Heavy Mace [Rating: 55] Favorites ----------- Power Improved Deuterium Engine Engine Improved Deuterium Engine Propulsion Light Treads Treads Light Treads Leg Aluminum Leg Utility Small Storage Unit Device Weapon Cycler Storage Small Storage Unit Processor Signal Interpreter Protection Improved Light Armor Plating Weapon Coil Gun Energy Gun Small Laser Energy Cannon Compact Ion Cannon Ballistic Gun Coil Gun Launcher Improved Grenade Launcher Impact Weapon Maul Build | -11 -10 -10 -9 -8 -7 -6 ------- Run | Yrd Mat Min Mat Mat Fac Fac Slots Evolved 8 | . . . 2 2 2 2 Power 1 | . . . . . 1 . Propulsion 2 | . . . . 2 . . Utility 3 | . . . 1 . 1 1 Weapon 2 | . . . 1 . . 1 Parts Attached 98 | 6 3 8 20 15 16 30 Power 12 | 1 1 1 2 1 3 3 Engine 12 | 1 1 1 2 1 3 3 Core . | . . . . . . . Reactor . | . . . . . . . Propulsion 24 | 2 1 4 5 4 3 5 Treads 16 | 2 1 1 2 4 3 3 Leg 8 | . . 3 3 . . 2 Wheel . | . . . . . . . Hover . | . . . . . . . Flight . | . . . . . . . Utility 19 | 1 1 1 1 4 3 8 Device 8 | . 1 . 1 . 2 4 Storage 2 | 1 . . . . . 1 Processor 5 | . . 1 . 3 . 1 Hackware . | . . . . . . . Protection 4 | . . . . 1 1 2 Artifact . | . . . . . . . Weapon 43 | 2 . 2 12 6 7 14 Energy Gun 10 | 2 . . 5 3 . . Energy Cannon 1 | . . . . . . 1 Ballistic Gun 26 | . . 2 6 3 5 10 Ballistic Cannon . | . . . . . . . Launcher 3 | . . . . . 2 1 Special Weapon . | . . . . . . . Impact Weapon 3 | . . . 1 . . 2 Slashing Weapon . | . . . . . . . Piercing Weapon . | . . . . . . . Special Melee Weapon . | . . . . . . . Unidentified Prototypes 1 | . . . . . . 1 Parts Lost 36 | . . 6 2 5 4 19 Power 5 | . . 1 1 . 1 2 Propulsion 12 | . . 4 . 1 1 6 Utility 6 | . . . . 2 2 2 Weapon 13 | . . 1 1 2 . 9 Highest Loss Streak 9 | . . 3 2 3 2 9 To Critical Strikes . | . . . . . . . Average Slot Usage (%) 92 | . 90 98 99 94 97 86 Engine 11 | . 14 12 10 9 13 11 Treads 22 | . 28 21 9 31 29 20 Leg 2 | . . 5 12 . . . Device 9 | . 5 5 11 . 5 16 Storage 8 | . 14 14 11 9 7 5 Processor 6 | . . 8 11 15 8 1 Protection 3 | . . . . 1 7 4 Energy Gun 5 | . 28 11 10 6 . . Ballistic Gun 19 | . . 16 22 18 22 22 Peak Build Rating 55 | 6 7 8 14 25 39 55 Average Rating 27 | 4 6 7 13 20 33 44 On Entrance 13 | . 6 7 8 14 25 31 Naked Turns 21 | . . . . . . 21 Heaviest Build 61 | 12 13 13 22 24 43 61 Greatest Support 80 | 40 40 40 40 80 80 80 Greatest Overweight (x) 12 | . . 2 1 . . 12 Average Overweight (x) . | . . . . . . . Largest Inventory Capacity 10 | 8 8 8 8 8 8 10 Average Capacity 8 | 6 8 8 8 8 8 8 Most Carried 10 | 2 8 8 8 8 8 10 Average Carried 7 | 1 5 7 7 7 7 7 Final Capacity 8 | 8 8 8 8 8 8 5 Final Carried 8 | 2 8 8 8 8 7 5 Class Distribution -------------------- 35% | Scavenger-Gunner 27% | Mutant 22% | Gunner 11% | Scavenger-Tank Dominant Class ---------------- Mutant | -10/Materials Mutant | -10/Mines Scavenger-Gunner | -9/Materials Scavenger-Gunner | -8/Materials Scavenger-Tank | -7/Factory Gunner | -6/Factory Resources | -11 -10 -10 -9 -8 -7 -6 ----------- Run | Yrd Mat Min Mat Mat Fac Fac Matter Collected 3448 | 205 85 116 305 633 721 1383 Remotely . | . . . . . . . Salvage Created 4615 | . 380 347 494 552 990 1852 Parts 275 | . 21 29 35 32 49 109 Haulers Intercepted 1 | . 1 . . . . . Recyclers Shooed 3 | . . . . . 1 2 Parts Field Recycled . | . . . . . . . Retrieved Matter . | . . . . . . . Parts Self-Destructed . | . . . . . . . Prevented . | . . . . . . . Kills | -11 -10 -10 -9 -8 -7 -6 ------- Run | Yrd Mat Min Mat Mat Fac Fac Combat Hostiles Destroyed 88 | . 7 12 10 14 19 26 Melee 1 | . . . . . . 1 Guns 76 | . 7 12 10 14 13 20 AOE 11 | . . . . . 6 5 Classes Destroyed 13 | . 5 . 2 1 3 2 Worker 10 | . 2 . . 1 3 4 Builder 6 | . . . 1 . 1 4 Tunneler 1 | . . . . . . 1 Hauler 1 | . 1 . . . . . Recycler 4 | . . . . . 1 3 Watcher 4 | . 1 . . . . 3 Swarmer 17 | . 3 6 . 4 . 4 Grunt 46 | . 4 6 6 6 17 7 Duelist 1 | . . . . . 1 . Sentry 12 | . . . 4 3 . 5 Specialist 2 | . . . . . . 2 Hunter 4 | . . . . 1 . 3 Programmer 6 | . . . . . 1 5 Best Kill Streak 7 | . 3 3 4 6 7 5 Combat Bots Only 7 | . 3 3 4 6 7 4 Max Kills in Single Turn 3 | . 1 2 1 1 2 3 Gunslinging 1 | . . . . . 1 . Exploded 2 | . . . . . 2 2 Melee 1 | . . . . . . 1 Uniques/NPCs Destroyed . | . . . . . . . Combat | -11 -10 -10 -9 -8 -7 -6 -------- Run | Yrd Mat Min Mat Mat Fac Fac Hostile Shots Fired 740 | . 32 84 67 97 91 369 Missed 211 | . 8 24 11 18 28 122 Damage Taken 7799 | . 246 746 750 1098 1131 3828 Core 1523 | . 52 175 157 124 150 865 Absorbed by Shields 221 | . . . . . 221 . Redirected to Shielding 105 | . . . . 105 . . Core Remaining (%) 64 | 100 . 9 60 77 78 . Volleys Fired 299 | . 31 41 43 57 50 77 Largest 4 | . 2 2 3 3 3 4 Hottest 126 | . 80 80 108 116 84 126 Shots Fired 826 | . 62 82 118 145 148 271 Gun 806 | . 62 82 118 145 142 257 Cannon . | . . . . . . . Launcher 20 | . . . . . 6 14 Special . | . . . . . . . Kinetic 654 | . . 58 86 111 142 257 Thermal 152 | . 62 24 32 34 . . Explosive 20 | . . . . . 6 14 Electromagnetic . | . . . . . . . Robot Hit Streak 28 | . 8 7 11 10 14 28 Robot Miss Streak 5 | . 5 2 3 4 4 4 Penetration Max 1 | . . . . . 1 1 Secondary Targets 8 | . . 3 . 1 2 2 Max Gunslinging Chain 1 | . . 1 . 1 1 1 Shots Hit Robots 515 | . 39 54 77 94 94 157 Core Hits 232 | . 18 26 25 33 52 78 Critical Kills 5 | . . . . . . 5 Critical Parts Destroyed 4 | . . . . . 2 2 Critical Strikes 15 | . . . 4 1 2 8 Burn 5 | . . . 4 1 . . Destroy 9 | . . . . . 2 7 Smash 1 | . . . . . . 1 Melee Attacks 8 | . . . 1 . . 7 Impact 8 | . . . 1 . . 7 Slashing . | . . . . . . . Piercing . | . . . . . . . Sneak Attacks . | . . . . . . . Combat Hostiles . | . . . . . . . Follow-up Attacks . | . . . . . . . Damage Inflicted 10071 | . 449 518 897 1410 2394 4403 Guns 8765 | . 449 518 897 1410 1690 3801 Cannons . | . . . . . . . Explosions 1192 | . . . . . 704 488 Melee 114 | . . . . . . 114 Ramming . | . . . . . . . Kinetic 7543 | . . 333 595 1124 1690 3801 Thermal 1222 | . 449 185 302 286 . . Explosive 1192 | . . . . . 704 488 Electromagnetic . | . . . . . . . Impact 114 | . . . . . . 114 Slashing . | . . . . . . . Piercing . | . . . . . . . Highest Corruption 6 | . . . . . 6 6 Average Corruption 2 | . . . . . 6 1 Corruption Purged 2 | . . . . . . 2 Corruption Blocked . | . . . . . . . Effects 13 | . . . . . 1 12 Message Errors 2 | . . . . . 1 1 Matter Fused 4 | . . . . . . 4 Heat Flow Errors 2 | . . . . . . 2 Parts Rejected 1 | . . . . . . 1 Data Loss (minor) 3 | . . . . . . 3 Alerts 1 | . . . . . . 1 Overload Shots . | . . . . . . . Overflow Damage 9 | . . . . . 2 7 Projectiles . | . . . . . . . Explosions 9 | . . . . . 2 7 Melee . | . . . . . . . Knockbacks 1 | . . . . . . 1 Impact 1 | . . . . . . 1 Kinetic . | . . . . . . . Secondary . | . . . . . . . Self-Inflicted Damage 162 | . . . . . . 162 Shots 4 | . . . . . . 4 Rammed . | . . . . . . . Targets Rammed . | . . . . . . . Kicked . | . . . . . . . Crushed . | . . . . . . . Highest Temperature 434 | . 177 217 401 434 243 392 Average Temperature 90 | . 49 55 128 147 78 67 Received Heat Transfer 2743 | . 105 375 336 369 478 1080 Effects 14 | . . . 1 6 3 4 Shutdowns 5 | . . . 1 3 . 1 Energy Bleed 2 | . . . . . 1 1 Interference 5 | . . . . 1 2 2 Damage (minor) 1 | . . . . 1 . . Damage (major) 1 | . . . . 1 . . Siege Activations . | . . . . . . . Robots Corrupted . | . . . . . . . Combat Hostiles . | . . . . . . . Parts Fried . | . . . . . . . Impact Corruptions . | . . . . . . . Robots Melted . | . . . . . . . Combat Hostiles . | . . . . . . . Parts Melted 2 | . . 1 1 . . . Heat Transferred 3263 | . 1025 425 1036 777 . . Parts Sabotaged . | . . . . . . . Parts Stolen . | . . . . . . . Parts Stripped . | . . . . . . . Power Chain Reactions . | . . . . . . . Alert | -11 -10 -10 -9 -8 -7 -6 ------- Run | Yrd Mat Min Mat Mat Fac Fac Peak Influence 339 | . 173 141 231 320 310 339 Initial 86 | . . 31 31 25 24 86 Average 106 | . 45 68 103 163 106 119 Maximum Alert Level 1 | . . . 1 1 1 1 Low Security (%) 83 | 100 100 100 85 54 90 78 Level 1 16 | . . . 14 45 9 21 Level 2 . | . . . . . . . Level 3 . | . . . . . . . Level 4 . | . . . . . . . Level 5 . | . . . . . . . High Security . | . . . . . . . Max Security . | . . . . . . . Squads Dispatched 30 | . 2 . 2 6 3 17 Investigation 4 | . 1 . . 1 1 1 Extermination 7 | . . . . . 2 5 Reinforcement 13 | . 1 . 2 2 . 8 Assault . | . . . . . . . Garrison 6 | . . . . 3 . 3 Intercept . | . . . . . . . Searches Triggered . | . . . . . . . Construction Impeded 1 | . . . . . . 1 Haulers Reinforced . | . . . . . . . Active Scanning Responses . | . . . . . . . Cargo Convoy Interrupts . | . . . . . . . Stealth | -11 -10 -10 -9 -8 -7 -6 --------- Run | Yrd Mat Min Mat Mat Fac Fac Distress Signals 2 | . . . . . 2 . Communications Jammed . | . . . . . . . Distress Signals . | . . . . . . . Times Spotted 128 | . 14 13 16 17 25 43 Peak Tracking Total 8 | . 4 3 5 7 8 6 Tactical Retreats 8 | . . 1 3 1 1 2 Traps | -11 -10 -10 -9 -8 -7 -6 ------- Run | Yrd Mat Min Mat Mat Fac Fac Traps Triggered 3 | . . . . . 2 1 Indirectly . | . . . . . . . Trap Hack Attempts . | . . . . . . . Triggered . | . . . . . . . Disarmed . | . . . . . . . Reprogrammed . | . . . . . . . Reused . | . . . . . . . Traps Extracted . | . . . . . . . Installed . | . . . . . . . Triggered . | . . . . . . . Machines | -11 -10 -10 -9 -8 -7 -6 ---------- Run | Yrd Mat Min Mat Mat Fac Fac Machines Disabled 4 | . . . 1 . 1 2 Max in Single Turn 1 | . . . 1 . 1 1 Garrison Access 1 | . . . . 1 . . Machines Repaired . | . . . . . . . Machines Dismantled . | . . . . . . . Machines Sabotaged . | . . . . . . . Overloaded Fab Kills . | . . . . . . . Hacking | -11 -10 -10 -9 -8 -7 -6 --------- Run | Yrd Mat Min Mat Mat Fac Fac Machines Accessed 8 | . 2 . 1 3 . 2 Terminals 6 | . 2 . 1 2 . 1 Fabricators . | . . . . . . . Repair Stations . | . . . . . . . Recycling Units . | . . . . . . . Scanalyzers . | . . . . . . . Garrison Access 2 | . . . . 1 . 1 Total Hacks 24 | . 6 . 3 11 . 4 Successful 4 | . 1 . 1 1 . 1 Failed 20 | . 5 . 2 10 . 3 Catastrophic 4 | . 1 . . 2 . 1 Database Lockouts . | . . . . . . . Manual 18 | . 6 . 3 7 . 2 Terminals 18 | . 6 . 3 7 . 2 Fabricators . | . . . . . . . Repair Stations . | . . . . . . . Recycling Units . | . . . . . . . Scanalyzers . | . . . . . . . Garrison Access 6 | . . . . 4 . 2 Terminal Hacks 3 | . 1 . 1 . . 1 Robot Analysis 1 | . 1 . . . . . Unreport Threat 2 | . . . 1 . . 1 Fabricator Hacks . | . . . . . . . Repair Station Hacks . | . . . . . . . Recycling Unit Hacks . | . . . . . . . Scanalyzer . | . . . . . . . Garrison Access Hacks 1 | . . . . 1 . . Seal Access 1 | . . . . 1 . . Unauthorized Hacks . | . . . . . . . Terminals . | . . . . . . . Fabricators . | . . . . . . . Repair Stations . | . . . . . . . Recycling Units . | . . . . . . . Scanalyzers . | . . . . . . . Garrison Access . | . . . . . . . Data Cores Recovered . | . . . . . . . Used . | . . . . . . . Hacking Detections 8 | . 2 . 1 3 . 2 Full Trace Events 3 | . 1 . . 1 . 1 Feedback Events . | . . . . . . . Feedback Blocked . | . . . . . . . Robot Schematics Acquired . | . . . . . . . Robots Built . | . . . . . . . Authchips . | . . . . . . . Time . | . . . . . . . Total Robot Build Rating . | . . . . . . . Part Schematics Acquired . | . . . . . . . Parts Built . | . . . . . . . Authchips . | . . . . . . . Time . | . . . . . . . Total Part Build Rating . | . . . . . . . Parts Repaired . | . . . . . . . Time . | . . . . . . . Parts Recycled . | . . . . . . . Recycled Matter . | . . . . . . . Retrieved Matter . | . . . . . . . Retrieved Components . | . . . . . . . Parts Scanalyzed . | . . . . . . . Part Schematics Acquired . | . . . . . . . Parts Damaged . | . . . . . . . Bothacking | -11 -10 -10 -9 -8 -7 -6 ------------ Run | Yrd Mat Min Mat Mat Fac Fac Used RIF Installer . | . . . . . . . Robots Hacked . | . . . . . . . Non-combat . | . . . . . . . Combat . | . . . . . . . Robot Hacks Applied . | . . . . . . . Relay Couplers Released . | . . . . . . . Fabnet Peak Effective % . | . . . . . . . Robots Rewired . | . . . . . . . Allies Hacked . | . . . . . . . Hacks Repelled . | . . . . . . . Allies | -11 -10 -10 -9 -8 -7 -6 -------- Run | Yrd Mat Min Mat Mat Fac Fac Total Allies 3 | . . . . . . 3 Largest Group 3 | . . . . . . 3 Highest-Rated Group 93 | . . . . . . 93 Highest-Rated Ally 31 | . . . . . . 31 Total Orders . | . . . . . . . Ally Attacks 20 | . . . . . . 20 Total Damage 303 | . . . . . . 303 Kills 3 | . . . . . . 3 Allies Corrupted . | . . . . . . . Allies Melted . | . . . . . . . Intel | -11 -10 -10 -9 -8 -7 -6 ------- Run | Yrd Mat Min Mat Mat Fac Fac Robot Analysis Total 1 | . 1 . . . . . Derelict Logs Recovered 2 | . . 2 . . . . Drone Launches . | . . . . . . . Drone Recoveries . | . . . . . . . Exploration | -11 -10 -10 -9 -8 -7 -6 ------------- Run | Yrd Mat Min Mat Mat Fac Fac Turns Passed 7407 | 80 566 1063 861 931 1260 2646 Spaces Moved 3789 | 45 282 598 422 468 626 1348 Core 56 | 2 . 3 . . . 51 Treads 3251 | 43 282 436 213 468 626 1183 Legs 482 | . . 159 209 . . 114 Wheels . | . . . . . . . Hover . | . . . . . . . Flight . | . . . . . . . Fastest Speed 50 | 50 160 120 120 160 160 50 Average Speed 159 | 155 160 149 151 160 162 164 Slowest Speed 650 | 160 160 160 240 160 166 650 Overloaded Moves . | . . . . . . . Propulsion Burnouts . | . . . . . . . Robots Hopped . | . . . . . . . Cave-ins Triggered 1 | . . . . . 1 . Exploration Rate (%) 43 | 4 53 97 44 44 25 36 Regions Visited 6 Branch Regions 1 Pre-discovered Areas . | . . . . . . . Known Exits Taken 3 | . . 1 1 1 . . Unknown Exits Taken 3 | 1 1 . . . 1 . Scrap Searched 1 | . . 1 . . . . Spaces Dug 4 | . . . 1 . . 3 Terrain Destroyed 81 | . . . 1 2 27 51 Melee 4 | . . . 1 . . 3 Projectile 9 | . . . . 2 . 7 AOE 68 | . . . . . 27 41 Terrain Rammed . | . . . . . . . Walls Destroyed . | . . . . . . . Machines Disabled . | . . . . . . . Actions | -11 -10 -10 -9 -8 -7 -6 --------- Run | Yrd Mat Min Mat Mat Fac Fac Total 4614 | 53 334 697 567 549 773 1641 Wait 306 | . 13 44 51 1 62 135 Move 3783 | 44 281 597 421 467 625 1348 Hop . | . . . . . . . Pick Up 51 | 3 5 4 10 3 7 19 Fast Attach 32 | 5 1 5 3 6 3 9 Attach 20 | 1 . 2 3 2 3 9 Detach . | . . . . . . . Swap 46 | . 2 1 14 7 10 12 Drop 69 | . 1 3 21 6 13 25 Fire 299 | . 31 41 43 57 50 77 Melee 8 | . . . 1 . . 7 Ram . | . . . . . . . Kick . | . . . . . . . Crush . | . . . . . . . Escape Stasis . | . . . . . . . Rewire . | . . . . . . . Trap . | . . . . . . . Miscellaneous . | . . . . . . . Route ------- -11/Scrapyard -10/Materials (discovered 2 exits: *Mat / [*Min]) -10/Mines (discovered 2 exits: *Mat x2) -9/Materials (discovered 4 exits: *Mat x2 / Min x2) -8/Materials -7/Factory -6/Factory History --------- Turn | Location | Event 12 | -11/Scrapyard | Discovered new exit (range 16) 81 | -11/Scrapyard | Entered Materials 236 | -10/Materials | Discovered new exit (range 16) 310 | -10/Materials | Build established: Mutant 366 | -10/Materials | Discovered new exit (range 14) 647 | -10/Materials | Entered Mines 734 | -10/Mines | Found a damaged Exp. Sensor Array with a note attached 817 | -10/Mines | Received a Rocket Launcher from a helpful Derelict 820 | -10/Mines | Discovered new exit (range 8) 840 | -10/Mines | Discovered new exit (range 6) 1050 | -10/Mines | Identified exit to Materials 1290 | -10/Mines | Learned 2 Materials zone layouts 1451 | -10/Mines | Core integrity fell below 50% 1489 | -10/Mines | Lost 3 parts (1p2n) 1516 | -10/Mines | Core integrity fell below 20% 1710 | -10/Mines | Entered Materials 1710 | -9/Materials | Evolved 2 slots: Utility x1, Weapon x1 1711 | -9/Materials | Identified exit to Mines 1712 | -9/Materials | Identified exit to Materials 2030 | -9/Materials | Build established: Scavenger-Gunner 2511 | -9/Materials | Discovered exit to Materials (range 15) 2571 | -9/Materials | Entered another Materials area 2571 | -8/Materials | Evolved 2 slots: Propulsion x2 2607 | -8/Materials | Garrison activated, responded to threat 2863 | -8/Materials | Lost 3 parts (1u2w) 3169 | -8/Materials | Discovered new exit (range 10) 3500 | -8/Materials | Identified exit to Factory 3502 | -8/Materials | Entered Factory 3502 | -7/Factory | Evolved 2 slots: Power x1, Utility x1 4124 | -7/Factory | Build established: Scavenger-Tank 4624 | -7/Factory | Destroyed 7 combat bots 4635 | -7/Factory | Crushed by falling debris 4676 | -7/Factory | Discovered new exit (range 15) 4762 | -7/Factory | Entered another Factory area 4762 | -6/Factory | Evolved 2 slots: Utility x1, Weapon x1 4880 | -6/Factory | Build established: Gunner 5623 | -6/Factory | Build established: Scavenger-Gunner 6230 | -6/Factory | Build established: Gunner 6860 | -6/Factory | Lost 4 parts (1p3n) 6985 | -6/Factory | Lost 5 parts (2u3w) 7224 | -6/Factory | Core integrity fell below 50% 7271 | -6/Factory | Lost 9 parts (1p2n6w) 7298 | -6/Factory | Core integrity fell below 20% 7307 | -6/Factory | Released all parts (4) 7313 | -6/Factory | Allied Derelicts emerged from ambush trap array 7408 | -6/Factory | Destroyed by H-61 Shepherd with Heavy Assault Cannon Last Messages --------------- 07327_ O-24 Administrator uses terminal to summon reinforcements. 07327_ ALERT: Hostiles spotted, dispatching reinforcements to Terminal F016. 07327_ O-24 Administrator locks terminal. 07327_ ALERT: Suspicious intruders detected, dispatching Cutter reinforcements to area. 07328_ Acquired Imp. Carbon-fiber Leg. 07333_ System corrupted: Matter fused (-5). 07348_ System corrupted: Component data lost. 07375_ K-01 Serf destroyed. 07376_ K-01 Serf collects debris. 07377_ 8A-C1J(g) destroyed. 07380_ K-01 Serf collects debris. 07382_ ALERT: Hostile activity reported, dispatching reinforcements to area. 07384_ U-05 Engineer builds a Wall. 07385_ Acquired Hvy. Flail. 07397_ U-05 Engineer builds a Wall. 07403_ U-05 Engineer knocked back. 07408_ Penetrated by Slug. Map ----- +----------------------------------------------------+ | ?????????????????????????# #?# #?? | | ?????????????????????????# //#?# !#?? | | ?????????????????????????# //#?# #?? | | ?????????????????????????# #?####+#########?? | | ????????????????#????????# #????# #? #??? | | ##############??# ????????? ?????# # "" #??? | | # #??# ###########+######## # """ #??? | | #!!! """" #??# / R" #??? | | #!!! """" #??# ######## # """ #??? | | #!! """" #??# ######## # #??? | | # """" #??# #= """ + #?######??? | | # #??# # "Y" # #?????????? | | # """" """" #??# # " " # #?????????? | | # """" """" #??# + + #?????????? | | # """" """" #??# #### [ ! # #?????????? | | # """" """" #??# #??#! # #?????????? | | # #??# #??######## ??????????? | | # #??# #?????????? ??????????? | | #######+######??# #?????????? ??????????? | | ???# #????#^^^########?????????? ??????????? | | ???# #???## ^^"##??????????????? ??????????? | | ???# #???# ##???????????????? ??????????? | | ???# #???# #????????##??????# ??????????? | | ???# #???# ###########??????# #######???? | | ???# #???# % ##??????# #???? | | ???# #???##########@ T#??????# ##### | | ###### ###########????# #??????# | | # # """T""" #????# % ##??????# % | | """" + + #????# #???????# | | ""R" # # ###### #######?# ##+## | | "" " # # """"""" + #?# ##! * | | # # """"""" # #?## ### = | | # # """"""" # #??# ??#!! | | # # """"""" + #??# ??# | | # # ######+## #??# ??# | | ###### ############ """ #u #??# ??# | | ##???# #??????????# """ !"u #??# ??# | | ??# #??????????# """ #u #??# ???# | | ??# ##########?# # ## ???# | | ?# # #?# # ???# | | ?# # """ =#?# ^ # H ???# | | # # """ ####+##+## = ???# | | "" # # """ ! # + % ????# | | "" + + # #% ????#### | | "" # # !!! ! # """ #![ ???????? | | #[*!# !!! # """ #!%* ???????? | | ######% # !! *# """ # ########### ???????? | | # !# [ !# # #??????????????????????? | | + [ ######## # """ # #?????????????########?? | | # ] #??????### """ # #?????????????#! #?? | +----------------------------------------------------+ Best States ------------- Heat Dissipation 64 Energy Generation 29 Energy Capacity 465 Matter Stores 300 Matter Capacity 300 Sight Range 16 Terrain Scan Density 10 Armor Coverage 225 Propulsion Shielding 66 Weapon Cycling 15 Evasion (%) 55 Targeting Accuracy 8 Core Analysis 6 Recoil Reduction 4 Kinecelleration 30 Item Schematics ----------------- None Robot Schematics ------------------ None Fabricated ------------ Nothing Alien Tech Used ----------------- None Achievements -------------- None Challenges ------------ None Game ------ Seed TowerDerelictHammer Manual? 0 Play Time 00:43:28 Cumulative 128.8 hours Start 2025.03.23 @ 18:21:37 End 2025.03.23 @ 19:21:17 Sessions 1 Manual Loads 0 Difficulty Rogue Special Mode None Game No. 258 Rogue 190 Adventurer 15 Explorer 53 Win Type - Total 3 Types 3/0/0/0/0/0/0/0/0 Lore% 37 Gallery% 60 Achievement% 47 Wizard Run 0 Options --------- Layout 0 ASCII 0 Keyboard 0 Movement Numpad Keybinds 0 Fullscreen 1 Font 18/SmallcapsGlow Map View 76x50 Zoom Use 0% Tactical HUD 1 Map Filters NONE Filters NONE Steam 1 RUN: bc88c45c-d124-4156-9df5-bbb800e26a42